bitfinex-derivatives/quotes_SOLF0:USTF0_20241208
["timestamp","ask_amount","ask_price","bid_price","bid_amount"]
[1733639432805,8.62936658,237.96,237.92,2.0999]
[1733639437003,1.2819,238.01,237.91,6.52976658]
[1733639437306,1.2819,238.01,237.93,6.52976658]
[1733639437506,1.9,238.06,237.97,6.52976658]
[1733639437805,2.099,238.03,237.97,8.42976658]
[1733639438007,6.52976658,238.05,237.97,8.42976658]
[1733639439005,8.62866658,238.05,238.0,2.0992]
[1733639439403,2.0989,238.05,238.0,2.0992]
[1733639440307,2.0989,238.05,237.97,8.42976658]
[1733639440513,6.52976658,238.06,238.02,2.099]
[1733639441610,2.0986,238.07,238.02,2.099]
[1733639441811,2.0986,238.07,238.03,2.099]
[1733639442009,3.9443,238.14,238.01,6.52976658]
[1733639442208,3.9443,238.14,238.03,6.52976658]
[1733639442209,8.62816658,238.09,238.03,6.52976658]
[1733639442910,50.4766513,238.14,238.03,6.52976658]
[1733639443115,6.52976658,238.1,238.03,6.52976658]
[1733639443516,6.52976658,238.1,238.06,2.0987]
[1733639443710,1.9,238.13,238.06,2.0987]
[1733639443913,1.9,238.13,238.03,6.52976658]
[1733639444112,8.62796658,238.13,238.08,2.0984]
[1733639444308,6.52976658,238.13,238.05,6.52976658]
[1733639445613,6.52976658,238.13,238.07,2.0986]
[1733639445917,6.52976658,238.13,238.05,6.52976658]
[1733639446519,47.8206513,238.14,238.05,6.52976658]
[1733639446713,6.52976658,238.13,238.09,2.0984]
[1733639447518,6.52976658,238.13,238.1,2.0983]
[1733639449119,6.52976658,238.11,238.09,2.0984]
[1733639449316,6.52976658,238.11,238.07,1.9]
[1733639450818,8.62796658,238.11,238.07,3.9985]
[1733639451219,2.0983,238.1,238.07,1.9]
[1733639451421,6.52976658,238.09,238.02,8.42976658]
[1733639452023,6.52976658,238.09,238.05,2.0988]
[1733639452225,1.9,238.13,238.04,6.52976658]
[1733639452226,6.52976658,238.11,238.04,6.52976658]
[1733639453225,6.52976658,238.11,238.06,6.52976658]
[1733639453626,6.52976658,238.11,238.02,1.9]
[1733639453819,6.52976658,238.11,238.03,6.52976658]
[1733639454726,2.0984,238.09,238.05,2.0988]
[1733639454929,6.52976658,238.11,238.03,6.52976658]
[1733639455124,6.52976658,238.11,238.03,8.42976658]
[1733639456729,47.8206513,238.14,238.07,6.52976658]
[1733639456930,54.35041788,238.14,238.07,6.52976658]
[1733639458734,2.0981,238.13,238.09,2.0984]
[1733639459932,6.52976658,238.12,238.08,2.0985]
[1733639460824,6.52976658,238.12,237.93,0.8596]
[1733639461030,2.0984,238.09,238.05,2.0987]
[1733639462534,2.0984,238.09,238.04,6.52976658]
[1733639462739,2.0984,238.09,238.06,2.0987]
[1733639463830,2.0986,238.07,238.03,2.0989]
[1733639464331,2.0988,238.05,238.01,3.9991]
[1733639464535,2.0988,238.05,238.01,2.0991]
[1733639465532,6.52976658,238.04,237.97,1.9]
[1733639465730,6.52976658,238.02,237.97,6.52976658]
[1733639466836,2.0991,238.01,237.97,8.62916658]
[1733639467636,6.52976658,238.02,237.94,1.9]
[1733639467939,6.52976658,238.02,237.94,8.42976658]
[1733639468134,2.0994,237.98,237.94,8.62946658]
[1733639468840,6.52976658,238.0,237.94,6.52976658]
[1733639468841,2.0994,237.99,237.94,6.52976658]
[1733639469036,6.52976658,238.0,237.94,6.52976658]
[1733639469637,2.0995,237.98,237.94,6.52976658]
[1733639469835,2.0995,237.98,237.94,8.62946658]
[1733639470338,2.099,238.03,237.98,2.0994]
[1733639470532,2.099,238.03,237.98,6.52976658]
[1733639471033,1.2614,238.04,238.0,6.52976658]
[1733639471743,1.2614,238.04,238.0,8.62896658]
[1733639472039,1.2614,238.04,237.98,6.52976658]
[1733639472237,7.79116658,238.04,237.96,1.9]
[1733639472443,7.79116658,238.04,237.96,8.42976658]
[1733639473645,2.0991,238.02,237.97,2.0994]
[1733639474942,6.52976658,238.03,237.97,2.0994]
[1733639475246,2.0992,238.01,237.97,2.0994]
[1733639477641,2.0991,238.02,237.98,2.0994]
[1733639480137,2.0991,238.02,237.96,6.52976658]
[1733639480349,2.0991,238.02,237.99,2.0993]
[1733639480644,8.62876658,238.03,237.99,2.0993]
[1733639483443,2.099,238.03,237.99,2.0993]
[1733639484245,2.099,238.03,238.0,2.0992]
[1733639485744,3.3603,238.04,238.01,2.0991]
[1733639488947,3.3603,238.04,238.0,2.0992]
[1733639491951,2.099,238.03,238.0,2.0992]
[1733639492949,2.099,238.03,237.98,6.52976658]
[1733639492950,2.0991,238.02,237.98,8.62906658]
[1733639493247,2.0991,238.02,237.98,6.52976658]
[1733639493444,2.0991,238.02,237.97,1.9]
[1733639493642,2.0991,238.02,237.98,6.52976658]
[1733639494649,2.0991,238.02,237.99,2.0993]
[1733639496651,2.099,238.03,238.0,6.52976658]
[1733639501647,2.0994,237.98,237.94,2.0997]
[1733639501957,6.52976658,238.02,237.95,6.52976658]
[1733639502154,2.0993,238.0,237.97,6.52976658]
[1733639503055,2.0993,238.0,237.99,6.52976658]
[1733639503445,2.0991,238.01,237.99,6.52976658]
[1733639504859,6.52976658,238.04,237.97,6.52976658]
[1733639505657,2.0992,238.01,237.99,6.52976658]
[1733639510557,6.52976658,238.04,237.93,1.9]
[1733639510757,2.0994,237.98,237.96,6.52976658]
[1733639511758,8.42976658,238.04,237.96,6.52976658]
[1733639511960,1.9,238.04,237.98,6.52976658]
[1733639512163,1.9,238.04,238.0,6.52976658]
[1733639512461,2.099,238.03,238.0,6.52976658]
[1733639512661,1.9,238.06,238.02,6.52976658]
[1733639513659,2.0989,238.05,238.02,6.52976658]
[1733639518265,1.3021,238.12,238.04,6.52976658]
[1733639518458,1.3021,238.12,238.09,6.52976658]
[1733639519559,3.4003,238.12,238.09,6.52976658]
[1733639520660,1.3021,238.12,238.07,6.52976658]
[1733639520858,2.0982,238.11,238.07,8.62836658]
[1733639521863,2.0985,238.08,238.03,8.42976658]
[1733639522062,2.0985,238.08,238.03,6.52976658]
[1733639522562,2.0985,238.08,238.03,8.62866658]
[1733639524369,2.0985,238.08,238.05,6.52976658]
[1733639524566,1.3021,238.12,238.07,6.52976658]
[1733639525671,3.4003,238.12,238.08,2.0985]
[1733639530265,2.0982,238.12,238.08,2.0985]
[1733639530572,2.0981,238.13,238.09,2.0984]
[1733639531671,2.0979,238.16,238.11,6.52976658]
[1733639531873,1.2838,238.19,238.13,6.52976658]
[1733639532271,2.0974,238.21,238.16,2.0978]
[1733639532470,6.52976658,238.23,238.16,2.0978]
[1733639533371,6.52976658,238.22,238.16,2.0978]
[1733639533572,2.0975,238.2,238.16,2.0978]
[1733639535673,2.0975,238.2,238.15,8.62766658]
[1733639536074,2.0976,238.19,238.15,8.62766658]
[1733639536679,2.0976,238.19,238.15,2.0979]
[1733639537477,2.0976,238.19,238.15,8.62766658]
[1733639537779,2.0974,238.21,238.16,2.0978]
[1733639538678,1.3064,238.26,238.17,6.52976658]
[1733639538875,8.42976658,238.25,238.17,6.52976658]
[1733639539282,2.0973,238.22,238.18,2.0976]
[1733639542182,2.0975,238.2,238.04,2.1317]
[1733639542372,2.0975,238.2,238.14,6.52976658]
[1733639542571,2.0975,238.2,238.15,2.0979]
[1733639543582,2.0975,238.19,238.15,2.0979]
[1733639543784,6.52976658,238.18,238.08,2.0984]
[1733639544082,6.52976658,238.18,238.1,6.52976658]
[1733639544676,6.52976658,238.18,238.09,1.9]
[1733639544872,2.098,238.15,238.11,6.52976658]
[1733639545172,1.9,238.19,238.13,6.52976658]
[1733639545379,2.0977,238.18,238.14,2.098]
[1733639546978,2.0978,238.17,238.13,8.62786658]
[1733639548078,2.0979,238.15,238.1,2.0982]
[1733639548386,2.0979,238.15,238.11,6.52976658]
[1733639548583,2.098,238.14,238.11,6.52976658]
[1733639549176,6.52976658,238.16,238.07,2.0985]
[1733639549381,6.52976658,238.14,238.07,3.9985]
[1733639549583,6.52976658,238.14,238.07,10.52826658]
[1733639550585,2.0982,238.12,238.07,8.42976658]
[1733639550788,2.0982,238.12,238.08,2.0985]
[1733639551188,2.0982,238.12,238.09,6.52976658]
[1733639556191,2.0982,238.12,238.08,2.0985]
[1733639556388,2.0982,238.12,238.09,6.52976658]
[1733639560496,6.52976658,238.16,238.09,6.52976658]
[1733639560694,6.52976658,238.16,238.09,8.62816658]
[1733639560695,2.0981,238.13,238.09,8.62816658]
[1733639564894,2.0981,238.13,238.07,1.9]
[1733639564895,2.0978,238.17,238.11,6.52976658]
[1733639565091,1.9,238.2,238.13,6.52976658]
[1733639565092,8.42976658,238.2,238.13,6.52976658]
[1733639565292,2.0976,238.19,238.15,8.62766658]
[1733639565689,1.316,238.21,238.15,6.52976658]
[1733639565892,1.316,238.21,238.12,1.9]
[1733639565893,3.4134,238.21,238.17,8.62736658]
[1733639567588,3.4134,238.21,238.17,6.52976658]
[1733639567791,2.0975,238.2,238.16,2.0978]
[1733639570797,2.0977,238.17,238.13,2.098]
[1733639571001,6.52976658,238.2,238.13,6.52976658]
[1733639571398,2.0976,238.18,238.13,8.62776658]
[1733639571997,2.0977,238.17,238.13,8.62776658]
[1733639573600,2.0977,238.17,238.14,2.098]
[1733639575306,3.216,238.21,238.17,2.0977]
[1733639575701,9.74576658,238.21,238.17,2.0977]
[1733639576199,2.0975,238.2,238.15,2.0978]
[1733639576405,9.74576658,238.21,238.14,6.52976658]
[1733639576602,3.216,238.21,238.12,8.42976658]
[1733639576906,6.52976658,238.19,238.12,8.42976658]
[1733639577109,6.52976658,238.19,238.13,2.098]
[1733639578716,2.0978,238.17,238.13,2.098]
[1733639579516,6.52976658,238.17,238.04,2.1319]
[1733639579710,6.52976658,238.17,238.1,2.0983]
[1733639579711,2.098,238.14,238.1,2.0983]
[1733639580319,6.52976658,238.17,238.1,2.0983]
[1733639580611,2.0981,238.13,238.1,2.0983]
[1733639580805,2.0981,238.13,238.09,6.52976658]
[1733639580806,6.52976658,238.15,238.09,2.0984]
[1733639582007,2.0981,238.13,238.09,2.0984]
[1733639582211,2.0981,238.13,238.09,8.62816658]
[1733639583617,2.0981,238.13,238.09,2.0984]
[1733639584013,2.0981,238.13,238.1,2.0983]
[1733639586019,360.45002824,238.39,238.11,6.52976658]
[1733639586220,360.45002824,238.39,238.2,6.52976658]
[1733639586221,6.52976658,238.27,238.2,6.52976658]
[1733639586415,4.5978,238.32,238.2,6.52976658]
[1733639586718,2.0971,238.25,238.2,8.62726658]
[1733639587119,1.9,238.29,238.2,6.52976658]
[1733639587419,8.62656658,238.27,238.22,2.0973]
[1733639587619,6.52976658,238.27,238.2,6.52976658]
[1733639588115,2.097,238.26,238.2,8.62716658]
[1733639588321,6.52976658,238.27,238.2,6.52976658]
[1733639588719,1.9,238.28,238.2,6.52976658]
[1733639588920,6.52976658,238.27,238.2,6.52976658]
[1733639589221,2.0969,238.26,238.21,2.0973]
[1733639590518,2.0969,238.26,238.2,6.52976658]
[1733639591719,2.0969,238.26,238.2,8.62716658]
[1733639591918,2.097,238.25,238.2,8.62716658]
[1733639592121,1.9,238.28,238.24,2.0971]
[1733639592323,6.52976658,238.31,238.24,2.0971]
[1733639592521,6.52976658,238.31,238.24,8.62686658]
[1733639593321,4.5978,238.32,238.25,2.097]
[1733639593524,11.12756658,238.32,238.25,2.097]
[1733639594824,2.0966,238.3,238.25,2.097]
[1733639596826,2.0967,238.29,238.24,6.52976658]
[1733639598722,2.0967,238.29,238.24,8.62686658]
[1733639600425,2.097,238.25,238.2,2.0974]
[1733639600727,4.5978,238.32,238.18,8.40976658]
[1733639600728,6.52976658,238.24,238.18,8.40976658]
[1733639601429,2.0972,238.23,238.19,2.0975]
[1733639602930,2.0973,238.22,238.18,6.52976658]
[1733639603833,2.0973,238.22,238.12,1.3529]
[1733639603834,6.52976658,238.22,238.16,2.0978]
[1733639604135,2.0975,238.19,238.15,6.52976658]
[1733639604330,2.0975,238.19,238.15,8.62766658]
[1733639604528,2.0975,238.19,238.15,2.0979]
[1733639604835,2.0975,238.19,238.15,8.62766658]
[1733639605333,6.52976658,238.22,238.15,6.52976658]
[1733639605928,6.52976658,238.2,238.12,1.88]
[1733639606131,6.52976658,238.2,238.14,8.62776658]
[1733639607732,2.0977,238.18,238.14,8.62776658]
[1733639608037,6.52976658,238.2,238.16,2.0978]
[1733639608237,6.52976658,238.2,238.12,1.88]
[1733639608238,1.88,238.27,238.18,6.52976658]
[1733639608429,8.40976658,238.27,238.18,6.52976658]
[1733639609135,8.40976658,238.27,238.12,1.88]
[1733639609136,8.40976658,238.27,238.21,2.0974]
[1733639609336,1.88,238.27,238.21,2.0974]
[1733639609539,8.40976658,238.27,238.21,2.0974]
[1733639610739,2.097,238.25,238.21,2.0974]
[1733639615438,2.6978,238.32,238.2,6.52976658]
[1733639615633,2.0969,238.27,238.22,8.62706658]
[1733639615835,1.88,238.31,238.24,6.52976658]
[1733639615836,1.88,238.3,238.24,6.52976658]
[1733639617340,6.52976658,238.31,238.24,6.52976658]
[1733639617644,2.0968,238.28,238.24,6.52976658]
[1733639617941,2.0968,238.28,238.23,2.0971]
[1733639619738,6.52976658,238.29,238.23,2.0971]
[1733639619941,2.0968,238.27,238.23,2.0971]
[1733639620334,2.0968,238.28,238.24,2.0971]
[1733639620539,8.40976658,238.31,238.24,6.52976658]
[1733639621736,2.0966,238.3,238.26,2.0969]
[1733639622844,8.62636658,238.3,238.26,2.0969]
[1733639623439,3.9765,238.31,238.27,2.0968]
[1733639623945,2.0965,238.31,238.27,2.0968]
[1733639624146,2.0965,238.31,238.28,2.0967]
[1733639626651,2.0965,238.31,238.27,2.0968]
[1733639631745,2.0966,238.3,238.26,8.62666658]
[1733639633849,2.0968,238.28,238.24,2.0971]
[1733639634854,2.0969,238.27,238.24,2.0971]
[1733639635253,6.52976658,238.28,238.22,1.88]
[1733639635452,2.0971,238.25,238.21,8.62716658]
[1733639635649,6.52976658,238.26,238.21,8.62716658]
[1733639636552,2.0971,238.24,238.21,8.62716658]
[1733639636758,6.52976658,238.26,238.11,1.2719]
[1733639636960,6.52976658,238.26,238.19,6.52976658]
[1733639638561,2.0973,238.23,238.19,8.62726658]
[1733639644363,2.0973,238.23,238.19,6.52976658]
[1733639644567,2.0973,238.23,238.2,2.0974]
[1733639644867,2.0973,238.23,238.21,6.52976658]
[1733639645070,2.0971,238.24,238.21,6.52976658]
[1733639648978,6.52976658,238.28,238.21,6.52976658]
[1733639649174,2.0971,238.24,238.21,8.62706658]
[1733639650679,2.0973,238.23,238.19,2.0975]
[1733639650873,6.52976658,238.26,238.19,8.62726658]
[1733639651075,6.52976658,238.26,238.19,2.0975]
[1733639651271,2.0969,238.26,238.19,8.62726658]
[1733639651476,6.52976658,238.25,238.19,8.62726658]
[1733639652373,2.0972,238.23,238.19,8.62726658]
[1733639653477,1.3644,238.32,238.21,6.52976658]
[1733639653779,1.3644,238.32,238.26,6.52976658]
[1733639654577,2.0966,238.3,238.26,8.62666658]
[1733639654780,6.52976658,238.31,238.24,6.52976658]
[1733639655582,2.0967,238.29,238.25,2.097]
[1733639657377,3.2444,238.32,238.26,6.52976658]
[1733639658787,5.3408,238.32,238.26,6.52976658]
[1733639659483,11.87056658,238.32,238.27,2.0968]
[1733639659885,2.0965,238.31,238.27,2.0968]
[1733639663782,9.77416658,238.32,238.26,6.52976658]
[1733639663988,2.0966,238.3,238.26,6.52976658]
[1733639664283,9.77416658,238.32,238.26,6.52976658]
[1733639664284,1.88,238.32,238.26,6.52976658]
[1733639664689,6.52976658,238.33,238.26,6.52976658]
[1733639665086,8.62606658,238.33,238.28,2.0967]
[1733639665286,8.62606658,238.33,238.26,6.52976658]
[1733639665991,2.0964,238.32,238.28,2.0967]
[1733639666586,2.0964,238.32,238.29,2.0967]
[1733639666790,46.48685464,238.42,238.28,6.52976658]
[1733639666991,1.88,238.41,238.3,6.52976658]
[1733639667190,46.48685464,238.42,238.3,6.52976658]
[1733639667392,6.52976658,238.38,238.3,6.52976658]
[1733639668693,2.0961,238.36,238.32,2.0963]
[1733639670289,2.0962,238.35,238.31,2.0965]
[1733639670494,2.0962,238.35,238.3,6.52976658]
[1733639670495,6.52976658,238.36,238.3,6.52976658]
[1733639670687,6.52976658,238.34,238.27,1.88]
[1733639671193,6.52976658,238.34,238.27,8.40976658]
[1733639671593,2.0964,238.32,238.28,2.0967]
[1733639671796,2.0964,238.32,238.27,6.52976658]
[1733639672690,2.0964,238.32,238.29,2.0967]
[1733639674197,2.0964,238.32,238.28,8.62646658]
[1733639676394,6.52976658,238.36,238.29,2.0966]
[1733639676596,2.0963,238.33,238.29,2.0966]
[1733639680203,289.87502353,238.48,238.31,6.52976658]
[1733639680397,289.87502353,238.48,238.4,6.52976658]
[1733639680398,6.52976658,238.48,238.4,6.52976658]
[1733639680698,6.52976658,238.48,238.27,0.8563]
[1733639680699,2.0956,238.41,238.36,8.62576658]
[1733639680898,2.0956,238.41,238.36,6.52976658]
[1733639683102,2.0956,238.41,238.36,8.62576658]
[1733639683301,6.52976658,238.44,238.36,8.62576658]
[1733639683302,2.0955,238.43,238.36,8.62576658]
[1733639683605,6.52976658,238.44,238.36,8.62576658]
[1733639684601,2.0955,238.42,238.36,8.62576658]
[1733639685097,2.0955,238.42,238.36,2.096]
[1733639685302,2.0955,238.42,238.36,8.62576658]
[1733639688605,2.0956,238.41,238.36,8.62576658]
[1733639692413,2.0957,238.4,238.36,8.62576658]
[1733639692609,6.52976658,238.37,238.31,3.9765]
[1733639693110,2.0961,238.36,238.31,3.9765]
[1733639694009,2.0961,238.36,238.32,2.0963]
[1733639697816,2.0961,238.35,238.31,2.0965]
[1733639698115,2.0961,238.35,238.31,8.62626658]
[1733639698315,1.3015,238.41,238.31,6.52976658]
[1733639698316,6.52976658,238.39,238.31,6.52976658]
[1733639698615,6.52976658,238.39,238.33,6.52976658]
[1733639699719,2.096,238.37,238.33,8.62606658]
[1733639701516,1.3015,238.41,238.35,6.52976658]
[1733639701517,2.0958,238.4,238.35,6.52976658]
[1733639701711,6.52976658,238.43,238.35,6.52976658]
[1733639702208,2.0955,238.42,238.37,6.52976658]
[1733639702519,3.1455,238.46,238.39,6.52976658]
[1733639702714,2.0954,238.44,238.41,6.52976658]
[1733639703317,1.2655,238.46,238.41,8.62536658]
[1733639703318,2.0952,238.46,238.41,8.62536658]
[1733639703518,2.0952,238.46,238.41,6.52976658]
[1733639703721,8.40976658,238.49,238.41,6.52976658]
[1733639703922,2.0951,238.47,238.42,2.0955]
[1733639705216,2.0949,238.49,238.44,2.0953]
[1733639706214,2.0951,238.47,238.41,2.0955]
[1733639706419,6.52976658,238.47,238.41,6.52976658]
[1733639707224,2.0952,238.46,238.41,8.62536658]
[1733639707410,3.9047,238.53,238.41,8.62536658]
[1733639707411,2.5979,238.53,238.43,6.52976658]
[1733639707618,6.52976658,238.5,238.43,6.52976658]
[1733639708620,6.52976658,238.5,238.4,1.88]
[1733639708621,6.52976658,238.48,238.42,2.0955]
[1733639709121,6.52976658,238.48,238.41,6.52976658]
[1733639710517,2.0953,238.45,238.41,6.52976658]
[1733639710822,2.0953,238.45,238.41,8.62536658]
[1733639711322,2.095,238.48,238.43,2.0954]
[1733639711524,6.52976658,238.49,238.41,6.52976658]
[1733639711717,2.0952,238.46,238.41,6.52976658]
[1733639711922,2.0952,238.46,238.41,8.62536658]
[1733639712227,2.0951,238.48,238.41,6.52976658]
[1733639712421,6.52976658,238.49,238.43,2.0954]
[1733639713420,4.4779,238.53,238.43,8.62516658]
[1733639713616,6.52976658,238.5,238.43,8.62516658]
[1733639714324,2.0949,238.5,238.46,2.0952]
[1733639714527,6.52976658,238.52,238.46,2.0952]
[1733639714922,1.3382,238.53,238.47,6.52976658]
[1733639715118,2.0946,238.52,238.47,8.62476658]
[1733639715518,7.86796658,238.53,238.47,8.62476658]
[1733639715828,6.52976658,238.51,238.46,1.88]
[1733639716027,289.87502353,238.67,238.49,6.52976658]
[1733639716225,6.52976658,238.61,238.54,6.52976658]
[1733639716422,6.52976658,238.61,238.34,1.04862461]
[1733639716423,6.52976658,238.59,238.52,6.52976658]
[1733639717231,6.52976658,238.58,238.51,1.88]
[1733639717430,6.52976658,238.58,238.51,8.40976658]
[1733639717625,2.0944,238.55,238.51,8.40976658]
[1733639719425,2.0943,238.56,238.51,10.50446658]
[1733639719832,2.0943,238.56,238.51,8.62446658]
[1733639720426,2.0945,238.55,238.51,6.52976658]
[1733639720625,6.52976658,238.57,238.51,6.52976658]
[1733639721529,2.0944,238.55,238.51,6.52976658]
[1733639721925,6.52976658,238.57,238.51,6.52976658]
[1733639723730,2.0945,238.54,238.51,6.52976658]
[1733639724731,6.52976658,238.57,238.51,6.52976658]
[1733639724931,2.0947,238.54,238.51,6.52976658]
[1733639726028,2.0947,238.54,238.5,1.88]
[1733639726231,2.0947,238.54,238.51,6.52976658]
[1733639726626,2.0947,238.54,238.5,1.88]
[1733639726826,2.0947,238.54,238.52,6.52976658]
[1733639727527,6.52976658,238.53,238.39,0.8521]
[1733639727728,6.52976658,238.53,238.46,6.52976658]
[1733639727927,6.52976658,238.53,238.39,0.8521]
[1733639727928,6.52976658,238.53,238.44,1.88]
[1733639728132,6.52976658,238.53,238.45,6.52976658]
[1733639728832,2.0952,238.49,238.45,6.52976658]
[1733639729632,2.0953,238.47,238.45,6.52976658]
[1733639731727,6.52976658,238.53,238.45,6.52976658]
[1733639731933,6.52976658,238.53,238.47,6.52976658]
[1733639733330,8.40976658,238.55,238.47,6.52976658]
[1733639733730,6.52976658,238.53,238.44,1.88]
[1733639733937,2.0951,238.49,238.47,6.52976658]
[1733639738939,2.0949,238.52,238.48,2.0952]
[1733639739236,1.88,238.55,238.5,6.52976658]
[1733639740237,1.88,238.59,238.54,6.52976658]
[1733639740435,8.40976658,238.6,238.54,6.52976658]
[1733639741137,1.88,238.6,238.54,6.52976658]
[1733639741338,8.40976658,238.6,238.54,6.52976658]
[1733639741740,2.0945,238.57,238.54,6.52976658]
[1733639743739,2.0943,238.58,238.54,6.52976658]
[1733639744754,2.0942,238.6,238.54,8.62436658]
[1733639744943,8.40976658,238.62,238.56,6.52976658]
[1733639745439,2.0942,238.6,238.56,6.52976658]
[1733639745835,8.40976658,238.62,238.56,6.52976658]
[1733639746043,2.0943,238.59,238.54,6.52976658]
[1733639746638,2.0944,238.58,238.54,6.52976658]
[1733639747345,2.0944,238.58,238.53,8.62446658]
[1733639749144,2.0944,238.58,238.53,2.0947]
[1733639749343,1.88,238.62,238.49,6.52976658]
[1733639749344,6.52976658,238.56,238.49,6.52976658]
[1733639749945,2.0948,238.53,238.49,6.52976658]
[1733639752153,2.0948,238.53,238.49,8.62486658]
[1733639753651,2.0948,238.53,238.5,2.095]
[1733639755451,2.0948,238.53,238.48,1.88]
[1733639755652,2.0949,238.52,238.49,2.0951]
[1733639758554,2.095,238.51,238.47,3.9753]
[1733639758855,2.095,238.51,238.47,10.50506658]
[1733639759954,2.0951,238.5,238.47,6.52976658]
[1733639760148,6.52976658,238.53,238.43,1.3307]
[1733639760456,6.52976658,238.53,238.45,6.52976658]
[1733639760755,2.0951,238.49,238.45,8.62516658]
[1733639761154,6.52976658,238.53,238.45,8.62516658]
[1733639761155,6.52976658,238.53,238.45,2.0954]
[1733639761454,2.0952,238.48,238.45,2.0954]
[1733639764360,2.0954,238.46,238.43,1.88]
[1733639764564,2.0954,238.46,238.44,6.52976658]
[1733639765755,2.0956,238.44,238.42,1.88]
[1733639765956,6.52976658,238.49,238.42,8.40976658]
[1733639766557,2.0955,238.45,238.42,6.52976658]
[1733639766959,2.0955,238.45,238.41,2.0957]
[1733639767157,2.0956,238.44,238.41,8.62546658]
[1733639767555,2.0956,238.43,238.41,6.52976658]
[1733639769562,2.0956,238.43,238.4,2.0959]
[1733639769759,2.0956,238.43,238.4,8.62566658]
[1733639771367,2.0956,238.44,238.4,8.62566658]
[1733639774163,6.52976658,238.43,238.39,500.66133]
[1733639774370,2.0959,238.4,238.39,500.66133]
[1733639776570,6.52976658,238.43,238.39,500.66133]
[1733639776773,2.0958,238.41,238.39,500.66133]
[1733639777976,2.0959,238.4,238.39,500.66133]
[1733639783779,3.9759,238.4,238.39,500.66133]
[1733639784587,3.9759,238.4,238.39,492.27136432]
[1733639784887,3.9759,238.4,238.39,490.17846432]
[1733639785286,3.9759,238.4,238.39,488.08556432]
[1733639789683,10.50566658,238.4,238.39,488.08556432]
[1733639795092,2.0959,238.4,238.39,488.08556432]
[1733639795299,10.50566658,238.4,238.39,488.08556432]
[1733639795895,3.9759,238.4,238.39,488.08556432]
[1733639796099,10.50566658,238.4,238.39,488.08556432]
[1733639798496,2.0959,238.4,238.39,488.08556432]
[1733639798698,6.52976658,238.43,238.39,488.08556432]
[1733639799600,2.0956,238.41,238.39,488.08556432]
[1733639800193,6.52976658,238.44,238.39,488.08556432]
[1733639801592,2.0956,238.42,238.39,488.08556432]
[1733639802102,6.52976658,238.44,238.39,488.08556432]
[1733639802403,2.0954,238.44,238.39,488.08556432]
[1733639803104,2.0954,238.43,238.39,488.08556432]
[1733639803396,6.52976658,238.46,238.39,488.08556432]
[1733639804203,2.0954,238.44,238.39,490.18136432]
[1733639804497,6.52976658,238.46,238.39,488.08556432]
[1733639804701,6.52976658,238.43,238.39,488.08556432]
[1733639805604,2.0957,238.41,238.39,488.08556432]
[1733639811807,6.52976658,238.43,238.39,488.08556432]
[1733639812003,6.52976658,238.47,238.4,6.52976658]
[1733639812206,6.52976658,238.45,238.39,488.08556432]
[1733639813611,2.0955,238.43,238.39,488.08556432]
[1733639814307,2.0953,238.45,238.39,496.7110309]
[1733639814503,2.0953,238.45,238.41,6.52976658]
[1733639816113,2.0954,238.43,238.4,1.2844]
[1733639818411,2.0955,238.42,238.4,1.2844]
[1733639821012,2.0953,238.45,238.4,9.90986658]
[1733639821314,34.84651996,238.56,238.44,6.52976658]
[1733639821512,2.0951,238.48,238.44,6.52976658]
[1733639822110,2.0949,238.49,238.44,6.52976658]
[1733639822411,34.84651996,238.56,238.44,6.52976658]
[1733639822619,6.52976658,238.52,238.44,8.40976658]
[1733639822815,2.0948,238.51,238.46,6.52976658]
[1733639824016,2.0946,238.53,238.48,6.52976658]
[1733639824617,2.0947,238.52,238.48,6.52976658]
[1733639827725,2.0948,238.51,238.44,1.88]
[1733639827918,6.52976658,238.51,238.45,6.52976658]
[1733639828420,2.0949,238.5,238.45,8.62496658]
[1733639829624,6.52976658,238.51,238.45,8.62496658]
[1733639829824,6.52976658,238.51,238.45,6.52976658]
[1733639830018,6.52976658,238.49,238.41,2.6586]
[1733639830222,6.52976658,238.44,238.41,1.2978]
[1733639830519,8.62506658,238.44,238.41,1.2978]
[1733639830914,8.62506658,238.44,238.4,1.2844]